bitfinex/quotes_ETHUSD_20250605
["timestamp","ask_amount","ask_price","bid_price","bid_amount"]
[1749141051961,3.89590151,2566.8,2566.7,10.481]
[1749141052160,3.89590151,2566.8,2566.7,8.415]
[1749141052491,4.61581622,2566.9,2566.7,10.481]
[1749141052675,0.72,2566.9,2566.7,10.481]
[1749141052866,3.89590151,2566.8,2566.7,8.415]
[1749141053068,4.61582437,2566.9,2566.7,10.481]
[1749141053373,0.72,2566.9,2566.7,10.481]
[1749141053580,4.61578521,2566.9,2566.7,10.481]
[1749141053879,0.72,2566.9,2566.8,2.066]
[1749141054463,0.72,2566.9,2566.8,5.96190151]
[1749141054665,0.02,2566.9,2566.8,32.6097228]
[1749141054864,0.02,2566.9,2566.8,18.8482]
[1749141055066,0.02,2566.9,2566.8,22.74410151]
[1749141055766,0.02,2566.9,2566.8,16.7822]
[1749141055988,0.02,2566.9,2566.7,8.415]
[1749141056195,0.02,2566.9,2566.8,9.105]
[1749141056389,3.91574973,2566.9,2566.8,9.105]
[1749141056693,3.89590151,2566.8,2566.7,8.415]
[1749141056990,5.59420441,2566.8,2566.7,8.415]
[1749141057153,0.7839,2566.5,2565.6,9.1737]
[1749141057357,3.89722067,2566.0,2565.7,2.066]
[1749141057567,3.89729463,2565.9,2565.7,2.066]
[1749141057769,3.8974199,2565.8,2565.7,2.066]
[1749141057955,3.89735242,2565.9,2565.7,2.066]
[1749141058154,3.8974199,2565.8,2565.7,2.066]
[1749141058350,3.89709573,2566.1,2565.7,2.066]
[1749141058554,3.89703791,2566.1,2565.7,2.066]
[1749141058792,3.89686377,2566.2,2565.8,2.066]
[1749141059090,3.8971857,2566.0,2565.8,2.066]
[1749141059263,3.89696426,2566.1,2565.8,2.066]
[1749141059483,3.89709951,2566.1,2565.8,9.104]
[1749141059885,3.89713024,2566.0,2565.8,2.066]
[1749141060213,3.89726801,2565.9,2565.8,9.104]
[1749141060398,4.26125263,2566.2,2565.8,2.066]
[1749141060572,3.8971437,2566.0,2565.8,2.066]
[1749141060921,3.89726801,2565.9,2565.8,2.066]
[1749141061205,3.89757181,2565.7,2565.6,0.7617]
[1749141061372,0.7,2566.0,2565.6,0.7617]
[1749141061373,1.5277,2566.0,2565.6,2.066]
[1749141061569,0.7,2566.0,2565.6,2.066]
[1749141061777,0.7,2566.0,2565.5,8.412]
[1749141061970,3.89755853,2565.8,2565.7,2.066]
[1749141062172,3.89772372,2565.6,2565.5,8.412]
[1749141062369,4.59713201,2566.0,2565.5,8.412]
[1749141062370,0.7,2566.0,2565.5,10.468]
[1749141062594,3.89734562,2565.9,2565.5,10.468]
[1749141062811,3.8974245,2565.8,2565.5,8.412]
[1749141062975,0.7,2566.0,2565.6,2.056]
[1749141063510,0.7,2566.0,2565.7,0.7615]
[1749141063810,0.7,2566.0,2565.8,7.037]
[1749141064601,0.7,2566.0,2565.9,19.89726801]
[1749141064798,0.7,2566.0,2565.9,16.0]
[1749141064979,4.59711613,2566.0,2565.9,18.056]
[1749141065179,4.59711613,2566.0,2565.9,2.056]
[1749141065604,4.59712673,2566.0,2565.7,0.7615]
[1749141065816,3.89757181,2565.7,2565.6,16.0]
[1749141065980,3.89726801,2565.9,2565.8,2.056]
[1749141066180,4.59717266,2566.0,2565.6,16.0]
[1749141066376,4.59717266,2566.0,2565.7,2.056]
[1749141066686,0.7,2566.0,2565.7,2.056]
[1749141066917,4.59712393,2566.0,2565.7,2.056]
[1749141067118,3.89770821,2565.7,2565.5,8.412]
[1749141067295,3.89757181,2565.7,2565.6,2.056]
[1749141067490,3.89757181,2565.7,2565.5,8.412]
[1749141067491,3.89772372,2565.6,2565.5,8.412]
[1749141067690,3.89772372,2565.6,2565.5,10.468]
[1749141068145,3.89764704,2565.7,2565.5,10.468]
[1749141068319,3.89772372,2565.6,2565.5,8.412]
[1749141068477,3.89772372,2565.6,2565.5,10.468]
[1749141068995,3.89772372,2565.6,2565.5,8.412]
[1749141069182,3.89841111,2565.2,2564.8,0.7658]
[1749141069382,4.44774266,2565.6,2564.9,2.056]
[1749141069383,4.44778259,2565.6,2564.9,2.056]
[1749141069584,0.7976,2565.7,2565.1,3.89836208]
[1749141069808,1.5276,2566.0,2565.3,0.7949]
[1749141070080,1.5276,2566.0,2565.3,4.69307222]
[1749141070280,0.7,2566.0,2565.5,9.86562129]
[1749141070645,0.7,2566.0,2565.8,0.7949]
[1749141070811,0.7,2566.0,2565.5,16.0]
[1749141070987,0.7,2566.0,2565.7,3.89757181]
[1749141071187,0.7,2566.0,2565.9,3.89726801]
[1749141071387,0.7,2566.0,2565.9,28.31226801]
[1749141071599,0.7,2566.0,2565.9,29.09836801]
[1749141072603,0.7,2566.0,2565.9,38.18836801]
[1749141074236,0.7,2566.0,2565.9,40.46836801]
[1749141074468,0.7,2566.0,2565.9,31.88836801]
[1749141074632,0.7,2566.0,2565.9,40.97636801]
[1749141074817,0.7,2566.0,2565.9,56.56557401]
[1749141075016,0.7,2566.0,2565.9,55.43857401]
[1749141075218,0.7,2566.0,2565.9,38.69636801]
[1749141075527,0.7,2566.0,2565.9,54.22231301]
[1749141075740,0.7,2566.0,2565.9,43.90739601]
[1749141076142,0.02,2566.9,2566.8,4.65630151]
[1749141076344,0.02,2566.9,2566.8,29.74330151]
[1749141077260,0.02,2566.9,2566.8,18.056]
[1749141077460,0.02,2566.9,2566.8,21.95190151]
[1749141077619,0.02,2566.9,2566.8,2.056]
[1749141078060,0.02,2566.9,2566.8,5.95190151]
[1749141079456,0.02,2566.9,2566.8,2.056]
[1749141079659,0.02,2566.9,2566.5,5.112938]
[1749141079959,0.02,2566.9,2566.6,25.084]
[1749141080130,0.02,2566.9,2566.7,2.056]
[1749141080329,0.02,2566.9,2566.8,2.056]
[1749141080738,3.91584892,2566.9,2566.8,2.056]
[1749141080943,1.5177,2566.9,2566.8,2.056]
[1749141081149,5.41344973,2566.9,2566.8,2.056]
[1749141081665,3.89590151,2566.8,2565.9,9.1822]
[1749141081971,3.89675326,2566.3,2566.0,2.056]
[1749141082273,3.89627964,2566.6,2566.1,3.8969109]
[1749141082950,3.89627964,2566.6,2566.0,2.056]
[1749141083150,3.89658571,2566.4,2566.0,2.056]
[1749141083533,3.89668909,2566.3,2566.0,2.056]
[1749141083745,3.89620967,2566.6,2566.0,2.056]
[1749141083943,3.89642498,2566.5,2566.0,2.056]
[1749141084234,3.89627845,2566.6,2566.1,3.89695231]
[1749141084440,3.89627845,2566.6,2566.0,2.056]
[1749141084441,3.89627845,2566.6,2566.0,5.95304773]
[1749141084636,3.89667183,2566.3,2566.0,2.056]
[1749141084838,3.89620509,2566.6,2566.0,2.056]
[1749141085053,4.69381686,2566.7,2566.2,3.8967942]
[1749141085259,4.69382968,2566.7,2566.2,3.89673734]
[1749141085454,4.69382968,2566.7,2566.0,5.95305178]
[1749141085455,0.7977,2566.7,2566.1,3.89696426]
[1749141085656,3.89627431,2566.6,2566.1,3.89696426]
[1749141085882,4.69375806,2566.7,2566.0,2.056]
[1749141086082,0.7977,2566.7,2566.0,2.056]
[1749141086287,0.7977,2566.7,2565.7,16.825]
[1749141086453,4.6937563,2566.7,2565.9,16.0]
[1749141086654,3.89658985,2566.4,2565.9,19.89717394]
[1749141086834,3.89706783,2566.1,2565.7,16.0]
[1749141087036,3.89719563,2566.0,2565.8,18.056]
[1749141087350,3.89719563,2566.0,2565.8,2.056]
[1749141088178,0.7638,2566.1,2565.8,2.056]
[1749141089143,4.6608448,2566.1,2565.8,2.056]
[1749141089339,0.7638,2566.1,2565.8,5.95335838]
[1749141089548,0.7638,2566.1,2565.8,2.056]
[1749141090187,4.66078938,2566.1,2565.8,2.056]
[1749141090490,3.89726801,2565.9,2565.8,2.056]
[1749141090646,0.7638,2566.1,2565.8,2.056]
[1749141090848,3.89726801,2565.9,2565.5,16.0]
[1749141091043,3.89726801,2565.9,2565.6,2.056]
[1749141091249,3.89725256,2566.0,2565.6,2.056]
[1749141091487,3.89751894,2565.8,2565.7,2.056]
[1749141091668,3.89724268,2566.0,2565.5,3.89786298]
[1749141091875,3.89726048,2566.0,2565.6,2.056]
[1749141092055,3.89728851,2565.9,2565.6,2.056]
[1749141092375,3.89728851,2565.9,2565.3,4.72315015]
[1749141092376,3.89755747,2565.8,2565.7,2.047]
[1749141092747,3.8974199,2565.8,2565.7,2.047]
[1749141093235,0.7638,2566.1,2565.7,2.047]
[1749141093380,3.89720075,2566.0,2565.7,2.047]
[1749141093568,3.89748666,2565.8,2565.3,3.89808185]
[1749141093770,3.89748666,2565.8,2565.4,2.047]
[1749141093983,0.55,2566.0,2565.2,16.0]
[1749141094163,9.85607756,2565.6,2564.6,0.829]
[1749141094362,0.7783,2565.4,2564.7,2.047]
[1749141094567,4.67635937,2565.4,2564.7,2.047]
[1749141094872,3.89828252,2565.3,2564.7,5.94601454]
[1749141095074,3.89749109,2565.8,2565.0,9.85607756]
[1749141095272,3.89712283,2566.0,2565.5,3.89786006]
[1749141095476,3.89712283,2566.0,2565.2,16.0]
[1749141095477,3.89712283,2566.0,2565.6,2.047]
[1749141095862,3.89675377,2566.3,2565.8,3.89734902]
[1749141096076,0.7783,2566.4,2565.7,9.2468]
[1749141096302,3.89689555,2566.2,2565.7,13.14431085]
[1749141096854,3.8968932,2566.2,2565.7,9.2468]
[1749141097272,4.67489168,2566.4,2565.8,16.0]
[1749141097467,3.89675484,2566.3,2565.8,19.89734278]
[1749141097684,0.7783,2566.4,2565.8,16.0]
[1749141097896,3.89688492,2566.2,2565.8,16.0]
[1749141098459,3.89667647,2566.3,2565.8,23.02]
[1749141098658,3.89682758,2566.2,2565.8,23.02]
[1749141099313,3.89666218,2566.3,2565.8,16.0]
[1749141099510,3.8974199,2565.8,2565.7,8.415]
[1749141099798,3.8974199,2565.8,2565.7,10.462]
[1749141100094,4.7284199,2565.8,2565.7,10.462]
[1749141100312,5.2784199,2565.8,2565.7,8.415]
[1749141100469,4.7284199,2565.8,2565.7,10.462]
[1749141101061,3.8974199,2565.8,2565.7,10.462]
[1749141101265,3.89727827,2565.9,2565.7,10.462]
[1749141101473,3.89707699,2566.1,2565.7,10.462]
[1749141102092,3.89697978,2566.1,2565.7,10.462]
[1749141102299,3.89728887,2565.9,2565.7,10.462]
[1749141103205,3.8974199,2565.8,2565.7,10.462]
[1749141103407,3.8974199,2565.8,2565.7,8.415]
[1749141103607,3.89787565,2565.5,2565.4,2.047]
[1749141103817,3.89772372,2565.6,2564.7,8.415]
[1749141103977,3.89863547,2565.0,2564.9,2.047]
[1749141104311,3.89893948,2564.8,2564.7,8.415]
[1749141104827,3.89959206,2564.4,2564.1,0.02]
[1749141105122,3.89977601,2564.3,2564.2,2.047]
[1749141105415,3.89963122,2564.4,2564.2,2.047]
[1749141105725,0.7719,2564.8,2564.2,2.047]
[1749141105917,3.89963197,2564.4,2564.2,2.047]
[1749141106113,0.7719,2564.8,2564.2,2.047]
[1749141106114,3.8994671,2564.5,2564.2,2.047]
[1749141106313,3.89969972,2564.3,2564.2,2.047]
[1749141107079,3.89965058,2564.4,2564.2,2.047]
[1749141107337,3.89969972,2564.3,2564.2,2.047]
[1749141107701,3.8998518,2564.2,2564.1,0.02]
[1749141107899,4.4498518,2564.2,2564.1,0.02]
[1749141108585,5.2479518,2564.2,2564.1,0.02]
[1749141108883,21.2479518,2564.2,2564.1,0.02]
[1749141109313,12.2639518,2564.2,2564.1,0.02]
[1749141110024,28.2639518,2564.2,2564.1,0.02]
[1749141110682,21.2479518,2564.2,2564.1,0.02]
[1749141110881,12.2649518,2564.2,2564.1,0.02]
[1749141113832,42.2649518,2564.2,2564.1,0.02]
[1749141114134,58.2649518,2564.2,2564.1,0.02]
[1749141114704,58.62593915,2564.2,2564.1,0.02]
[1749141114907,5.27847328,2563.2,2563.1,0.02]
[1749141116229,4.72847328,2563.2,2563.1,0.02]
[1749141116597,3.90137328,2563.2,2563.1,0.02]
[1749141117338,4.45137328,2563.2,2563.1,0.02]
[1749141118241,5.23057328,2563.2,2563.1,0.02]
[1749141118637,4.68057328,2563.2,2563.1,0.02]
[1749141118940,0.7792,2563.8,2563.1,0.02]
[1749141119161,3.90129349,2563.3,2563.1,0.02]
[1749141119301,3.90137328,2563.2,2563.1,0.02]
[1749141119507,3.90137328,2563.2,2563.1,2.069]
[1749141120149,0.7792,2563.8,2563.1,2.069]
[1749141120367,3.90118024,2563.4,2563.1,2.069]
[1749141120663,0.7792,2563.8,2563.1,2.069]
[1749141120853,0.7822,2564.1,2563.4,4.66953811]
[1749141121010,3.90026599,2564.0,2563.5,3.90084422]
[1749141121210,3.90017245,2564.0,2563.5,3.90081647]
[1749141121407,3.90007961,2564.1,2563.6,3.90068245]
[1749141121821,3.89924354,2564.6,2563.5,16.0]
[1749141122019,3.90061497,2563.7,2563.5,16.0]
[1749141122246,3.90053447,2563.8,2563.6,2.049]
[1749141122451,3.90045843,2563.9,2563.7,2.039]
[1749141122628,3.90091671,2563.5,2563.4,9.1916]
[1749141122952,3.90030812,2563.9,2563.8,2.039]
[1749141123319,3.90091671,2563.5,2563.4,0.7686]
[1749141123518,10.91491208,2564.2,2563.3,2.039]
[1749141123723,3.90106889,2563.4,2563.3,2.039]
[1749141124018,0.55,2564.0,2563.3,2.039]
[1749141124220,3.90106889,2563.4,2563.3,2.039]
[1749141125063,0.55,2563.8,2563.3,2.039]
[1749141125262,3.90106889,2563.4,2563.3,2.039]
[1749141126222,0.55,2563.8,2563.3,2.039]
[1749141126428,0.55,2563.9,2563.3,2.039]
[1749141126653,3.90085848,2563.6,2563.3,2.039]
[1749141126863,3.90069038,2563.7,2563.3,2.039]
[1749141127234,3.90079135,2563.6,2563.3,2.039]
[1749141127576,11.73218072,2564.1,2563.3,2.039]
[1749141127577,3.90069415,2563.7,2563.3,2.039]
[1749141127861,3.90044531,2563.9,2563.3,5.94021477]
[1749141127862,3.90044752,2563.9,2563.3,5.94021477]
[1749141128083,0.8191,2564.1,2563.4,0.7696]
[1749141128225,3.90091671,2563.5,2563.4,0.7696]
[1749141128428,3.90091671,2563.5,2563.4,2.04]
[1749141128429,3.90101132,2563.5,2563.4,2.04]
[1749141129464,3.90137328,2563.2,2563.1,0.02]
[1749141129668,3.90137328,2563.2,2563.1,2.06]
[1749141129873,4.45137328,2563.2,2563.1,0.02]
[1749141130240,3.90137328,2563.2,2563.1,0.02]
[1749141130878,0.2136098,2563.7,2563.2,0.8055]
[1749141131087,3.9004816,2563.8,2563.2,0.8055]
[1749141131400,3.90013913,2564.1,2563.6,4.72906222]
[1749141131561,3.89988957,2564.2,2563.7,2.04]
[1749141131761,3.89985759,2564.2,2563.7,2.04]
[1749141132001,0.8331,2564.5,2563.7,18.04]
[1749141132179,3.89998419,2564.2,2563.9,0.8265]
[1749141132374,3.900156,2564.0,2563.9,0.8265]
[1749141132604,0.55,2564.1,2563.8,2.04]
[1749141132774,3.90030812,2563.9,2563.8,2.04]
[1749141132976,0.91190629,2564.1,2563.8,2.04]
[1749141133304,3.90030812,2563.9,2563.8,2.04]
[1749141133481,4.26221441,2563.9,2563.8,2.04]
[1749141135798,3.90076454,2563.6,2563.5,0.8005]
[1749141135968,3.90076454,2563.6,2563.5,2.04]
[1749141136568,4.35043952,2564.1,2563.3,0.8144]
[1749141136569,3.90106889,2563.4,2563.3,0.8144]
[1749141136879,3.90106889,2563.4,2563.3,2.8534]
[1749141137090,3.90106889,2563.4,2563.3,2.039]
[1749141137276,3.90127582,2563.3,2563.1,0.02]
[1749141137477,3.90106889,2563.4,2563.2,2.039]
[1749141137478,3.90114758,2563.4,2563.2,2.039]
[1749141137721,3.90117368,2563.4,2563.1,0.02]
[1749141137923,3.90106889,2563.4,2563.3,2.039]
[1749141138105,4.26517353,2563.4,2563.3,2.039]
[1749141138727,3.90137328,2563.2,2563.1,0.02]
[1749141139035,0.36410464,2563.2,2563.1,0.02]
[1749141139322,4.26546215,2563.2,2563.1,0.02]
[1749141139685,0.36408887,2563.2,2563.1,0.02]
[1749141139896,3.90101477,2563.5,2563.1,0.02]
[1749141140212,3.90068755,2563.7,2563.2,4.72069468]
[1749141140399,3.90068755,2563.7,2563.2,0.8194]
[1749141140400,3.90093869,2563.5,2563.2,0.8194]
[1749141140602,3.90093869,2563.5,2563.3,2.04]
[1749141141030,3.90106889,2563.4,2563.3,2.04]
[1749141141400,3.90070096,2563.7,2563.3,2.04]
[1749141141588,3.90024765,2564.0,2563.4,3.90092585]
[1749141141913,10.45503801,2564.4,2563.5,16.0]
[1749141142130,4.26388812,2564.3,2563.7,0.8038]
[1749141142332,0.36407963,2564.2,2563.8,3.90039403]
[1749141142645,3.90024559,2564.0,2563.7,0.8038]
[1749141142811,3.90007502,2564.1,2563.7,0.8038]
[1749141143010,3.8997614,2564.3,2563.8,5.94034892]
[1749141143305,0.8086,2564.6,2563.8,2.04]
[1749141143514,4.26339659,2564.5,2563.8,2.04]
[1749141143716,3.89982248,2564.3,2563.8,2.04]
[1749141144021,4.26336872,2564.5,2564.0,3.9000348]
[1749141144214,3.89947125,2564.5,2564.1,0.763]
[1749141144445,3.89931256,2564.6,2564.1,4.66287793]
[1749141144746,3.89928285,2564.6,2564.1,4.66292096]
[1749141145053,4.26307037,2564.6,2564.1,4.66292096]
[1749141145252,3.89928285,2564.6,2564.1,4.66292096]
[1749141145475,10.90361984,2565.1,2564.1,4.66292096]
[1749141145476,4.35354266,2565.1,2564.5,0.7856]
[1749141145607,4.26228223,2565.1,2564.6,5.93813276]
[1749141145956,0.36372601,2565.3,2564.6,2.039]
[1749141146164,3.89864847,2565.0,2564.6,2.039]
[1749141146312,3.89848348,2565.1,2564.6,2.039]
[1749141146815,3.89904427,2564.8,2564.6,2.039]
[1749141147145,3.89904427,2564.8,2564.7,2.039]
[1749141148437,3.89886844,2564.9,2564.7,2.039]
[1749141149016,3.89893948,2564.8,2564.7,2.039]
[1749141151250,3.89893948,2564.8,2564.6,16.0]
[1749141151455,3.89909151,2564.7,2564.5,0.7856]
[1749141151730,3.89905906,2564.8,2564.7,2.039]
[1749141152151,0.55,2565.3,2564.7,2.039]
[1749141152354,3.89893948,2564.8,2564.7,2.039]
[1749141152963,3.89969161,2564.4,2564.2,0.7839]
[1749141153165,3.89969972,2564.3,2564.2,16.7839]
[1749141153326,3.8998518,2564.2,2563.9,0.7839]
[1749141153766,3.8998518,2564.2,2564.1,10.453]
[1749141154944,3.89958869,2564.4,2564.1,10.453]
[1749141155157,3.89969972,2564.3,2564.1,10.453]
[1749141155560,0.7864,2564.8,2564.1,10.453]
[1749141155765,3.89875849,2565.0,2564.3,0.7588]
[1749141155935,3.89895105,2564.8,2564.4,16.0]
[1749141156135,3.89863547,2565.0,2564.5,3.89938073]
[1749141156332,3.89863547,2565.0,2564.5,3.89939559]
[1749141156537,3.89863547,2565.0,2564.6,3.89922096]
[1749141157137,3.89855874,2565.1,2564.6,3.89922096]
[1749141157334,0.8268,2565.4,2564.7,16.0]
[1749141157534,3.89842921,2565.2,2564.8,2.03]
[1749141157780,3.89863159,2565.1,2564.8,2.03]
[1749141157949,3.89830278,2565.3,2564.8,6.7408282]
[1749141158144,3.89823856,2565.3,2564.8,2.8419]
[1749141158356,3.8986297,2565.1,2564.8,2.8419]
[1749141158556,0.8268,2565.4,2564.8,2.8419]
[1749141158873,3.89835623,2565.2,2564.8,2.8419]
[1749141159075,3.89848545,2565.1,2564.8,2.8419]
[1749141159253,3.89831111,2565.3,2564.8,6.74076566]
[1749141159452,3.89878747,2564.9,2564.8,2.8419]
[1749141159650,0.8268,2565.4,2564.5,6.997]
[1749141159651,3.89924354,2564.6,2564.5,2.8433]
[1749141160251,10.89233688,2565.2,2564.5,2.03]
[1749141160252,0.7714,2564.8,2564.5,2.03]
[1749141160467,3.89924354,2564.6,2564.5,2.03]
[1749141160780,3.8998518,2564.2,2564.1,9.181]
[1749141160983,3.8998518,2564.2,2564.1,10.453]
[1749141161182,4.4498518,2564.2,2564.1,10.453]
[1749141161996,4.4498518,2564.2,2564.1,2.03]
[1749141161997,5.2408518,2564.2,2564.1,2.03]
[1749141162554,3.90057421,2563.8,2563.5,0.824]
[1749141162761,3.90068343,2563.7,2563.6,2.03]
[1749141163095,3.90035043,2563.9,2563.6,2.03]
[1749141163096,3.9004301,2563.9,2563.6,2.03]
[1749141163408,3.90038251,2563.9,2563.6,2.03]
[1749141163603,0.791,2564.2,2563.6,2.03]
[1749141163604,3.90046025,2563.8,2563.6,2.03]
[1749141163891,3.90047948,2563.8,2563.6,2.03]
[1749141164109,3.90061239,2563.7,2563.6,2.03]
[1749141165074,3.90046323,2563.8,2563.6,2.03]
[1749141165391,3.90061239,2563.7,2563.6,2.03]
[1749141165752,3.90137328,2563.2,2563.1,8.44]
[1749141166888,4.45137328,2563.2,2563.1,8.44]
[1749141167091,3.90130619,2563.3,2563.1,8.44]
[1749141167242,0.7811,2563.6,2563.1,8.44]
[1749141167243,3.90109159,2563.4,2563.1,8.44]
[1749141167450,3.90122884,2563.3,2563.1,8.44]
[1749141167781,3.90137328,2563.2,2563.1,10.47]
[1749141167987,3.90137328,2563.2,2563.1,8.44]
[1749141168193,21.31549015,2563.2,2563.1,0.02]
[1749141168581,52.07989015,2563.2,2563.1,0.02]
[1749141168731,3.90228674,2562.6,2562.5,2.03]
[1749141168914,3.90259132,2562.4,2562.3,1.33333334]
[1749141169521,4.45250515,2562.5,2562.3,1.33333334]
[1749141169891,0.55,2562.9,2562.3,17.33333334]
[1749141170117,3.901984,2562.8,2562.3,17.33333334]
[1749141170430,3.90259132,2562.4,2562.3,1.33333334]
[1749141170743,6.991,2562.7,2562.3,1.33333334]
[1749141170891,10.89323466,2562.7,2562.3,1.33333334]
[1749141171090,4.45203625,2562.8,2562.3,5.23603698]
[1749141171291,0.55,2562.8,2562.3,1.33333334]
[1749141171505,3.90231907,2562.6,2562.3,1.33333334]
[1749141171734,3.90182995,2562.9,2562.3,1.33333334]
[1749141171904,3.90202513,2562.8,2562.3,2.08953334]
[1749141172107,0.761,2563.3,2562.3,18.08953334]
[1749141172461,4.66226103,2563.3,2562.3,21.99225356]
[1749141172748,3.90164372,2563.1,2562.4,3.90254417]
[1749141172923,0.761,2563.3,2562.5,3.9024269]
[1749141173128,3.90166734,2563.1,2562.3,21.99225528]
[1749141173293,0.761,2563.3,2562.3,18.08953334]
[1749141173598,4.66229484,2563.3,2562.7,3.90205176]
[1749141173930,3.90099381,2563.5,2562.9,3.90174523]
[1749141174163,10.89178005,2563.6,2563.0,2.031]
[1749141174449,6.991,2563.6,2563.0,2.031]
[1749141174593,3.90130305,2563.3,2563.0,2.031]
[1749141175007,3.90130173,2563.3,2563.0,2.031]
[1749141175440,3.90137415,2563.2,2563.0,2.031]
[1749141175993,0.55,2563.5,2563.0,2.031]
[1749141176245,3.90146741,2563.2,2563.0,2.031]
[1749141176432,3.90152549,2563.1,2563.0,2.031]
[1749141177158,0.55,2563.5,2563.0,2.031]
[1749141177359,3.90132782,2563.3,2563.0,2.031]
[1749141177570,0.7524,2563.2,2562.3,0.66666667]
[1749141177879,3.9021076,2562.8,2562.4,2.031]
[1749141178045,3.90171376,2563.0,2562.5,3.902357]
[1749141178427,0.55,2563.4,2562.4,18.031]
[1749141178752,3.90212503,2562.8,2562.5,2.031]
[1749141178957,3.90179879,2563.0,2562.5,2.031]
[1749141179127,3.90159493,2563.1,2562.5,2.031]
[1749141179317,3.90168883,2563.0,2562.6,16.0]
[1749141179717,3.90168883,2563.0,2562.5,5.93336351]
[1749141179718,0.55,2563.4,2562.5,2.031]
[1749141179946,0.55,2563.4,2562.6,0.8073]
[1749141180145,3.90180828,2563.0,2562.6,0.8073]
[1749141180457,3.90180828,2563.0,2562.6,16.8073]
[1749141180616,0.55,2563.2,2562.6,16.8073]
[1749141180821,3.90211798,2562.8,2562.6,16.8073]
[1749141181021,3.90213446,2562.7,2562.6,16.8073]
[1749141181247,3.90200386,2562.8,2562.3,0.66666667]
[1749141181248,0.8207,2563.0,2562.3,0.66666667]
[1749141181410,3.90235675,2562.6,2562.3,0.66666667]
[1749141181618,20.72193363,2563.3,2562.3,0.66666667]
[1749141181813,3.9021982,2562.7,2562.3,0.66666667]
[1749141182153,34.45259132,2562.4,2562.3,0.66666667]
[1749141182323,43.13337477,2562.4,2562.3,0.66666667]
[1749141182513,4.45259132,2562.4,2562.3,0.66666667]
[1749141185359,43.13337477,2562.4,2562.3,0.66666667]
[1749141185559,59.92177477,2562.4,2562.3,0.66666667]
[1749141185732,60.12448846,2562.4,2562.3,0.54124546]
[1749141186058,60.69836532,2562.4,2562.3,1e-08]
[1749141186261,60.69836787,2562.4,2562.3,1e-08]
[1749141186566,64.69836787,2562.4,2562.3,1e-08]
[1749141186731,64.69835774,2562.4,2562.3,1e-08]
[1749141187057,56.01758514,2562.4,2562.3,1e-08]
[1749141187265,62.42970501,2562.4,2562.3,1e-08]
[1749141187701,46.42970501,2562.4,2562.3,1e-08]
[1749141187884,38.69099132,2562.4,2562.3,1e-08]
[1749141188261,39.24099132,2562.4,2562.3,1e-08]
[1749141188604,55.60259872,2562.4,2562.3,1e-08]
[1749141189302,55.60259872,2562.4,2561.1,0.02]
[1749141189303,4.4544198,2561.2,2561.1,0.02]
[1749141189503,43.13520325,2561.2,2561.1,0.02]
[1749141189708,4.4544198,2561.2,2561.1,0.02]
[1749141189909,4.65748799,2561.3,2561.1,0.02]
[1749141189910,3.90439404,2561.3,2561.1,2.043]
[1749141190069,3.9044198,2561.2,2561.1,2.043]
[1749141190556,0.7532,2561.7,2561.1,2.043]
[1749141190757,0.7694,2562.0,2561.2,0.789]
[1749141190995,3.90352288,2561.8,2561.3,3.90422253]
[1749141191196,3.9037309,2561.7,2561.2,0.789]
[1749141191402,3.90335298,2561.9,2561.2,16.789]
[1749141191601,4.0,2562.2,2561.2,0.789]
[1749141191800,3.90426736,2561.3,2561.1,0.02]
[1749141191964,3.9044198,2561.2,2561.1,0.02]
[1749141192297,3.9044198,2561.2,2561.1,2.043]
[1749141192504,3.90433636,2561.3,2561.1,2.043]
[1749141192678,3.90425356,2561.4,2561.1,2.043]
[1749141192872,0.55,2561.5,2561.1,0.02]
[1749141193077,3.9044198,2561.2,2561.1,2.043]
[1749141193293,7.7953,2561.7,2561.1,2.043]
[1749141193617,0.55,2561.8,2561.1,2.043]
[1749141193796,3.90348832,2561.9,2561.1,2.043]
[1749141193998,3.90360517,2561.8,2561.3,0.7889]
[1749141194198,3.90313954,2562.1,2561.4,3.90403241]
[1749141194401,3.90313954,2562.1,2561.3,0.7889]
[1749141194402,0.36189516,2562.5,2561.7,3.90355552]
[1749141194726,3.90254001,2562.5,2561.9,3.90328086]
[1749141194881,3.90208389,2562.8,2562.2,3.90282572]
[1749141195080,3.90168203,2563.0,2562.5,3.90236528]
[1749141195280,3.90183588,2562.9,2562.6,2.023]
[1749141195493,3.90201769,2562.8,2562.4,0.7889]
[1749141195706,3.90223589,2562.7,2562.5,2.023]
[1749141195908,0.36189516,2563.1,2562.5,2.023]
[1749141196093,3.90151986,2563.2,2562.5,2.023]
[1749141196408,0.7994,2563.4,2562.4,16.7889]
[1749141196572,3.90173711,2563.0,2562.6,2.023]
[1749141196770,3.90190689,2562.9,2562.6,2.023]
[1749141196972,4.26299276,2563.4,2562.7,3.90202821]
[1749141197216,4.26299276,2563.4,2562.6,2.023]
[1749141197217,4.68339353,2563.7,2562.8,4.7218871]
[1749141197411,0.36189516,2563.8,2562.8,0.82]
[1749141197613,3.90057184,2563.8,2563.2,0.82]
[1749141197784,0.02,2563.9,2563.3,5.92417672]
[1749141197986,3.90122108,2563.3,2563.2,0.82]
[1749141198186,3.90122108,2563.3,2563.2,2.843]
[1749141198538,0.02,2563.9,2563.4,3.90095182]
[1749141198832,3.90070432,2563.7,2563.5,2.023]
[1749141199034,3.90046025,2563.8,2563.2,0.82]
[1749141199035,0.02,2563.9,2563.2,0.82]
[1749141199327,3.90114172,2563.4,2563.2,0.82]
[1749141199536,3.90122108,2563.3,2563.2,0.82]
[1749141199734,3.90169954,2563.0,2562.9,0.765]